Cogmind - Beta 15 @@@ ROGUE MODE // 2025.09.10 @ 16:36:10 Player: BlobtheGreat Result: Destroyed by D-53 Grenadier with Mini Grenade Launcher Performance ------------- Evolutions (0) 0 Regions Visited (2) 400 Robots Destroyed (36) 180 Value Destroyed (829) 829 Prototype IDs (0) 0 Alien Tech Used (0) 0 Bonus (0) 0 TOTAL SCORE: 1409 Bonus ------- None Cogmind --------- Core Integrity 0/250 Matter 243/300 Energy 90/100 System Corruption 0% Temperature Cool (0) Movement Core (750) Ox14 Location -10/Mines Parts ------- > --- POWER (1) -------- (None) > --- PROPULSION (2) --- Aluminum Leg > --- UTILITY (2) ------ High-capacity Storage Unit > --- WEAPON (2) ------- Assault Rifle Assault Rifle > --- INVENTORY (20) --- Aluminum Leg Huge Storage Unit Seismic Detector Hacking Suite EM Pulse Gun Medium Laser Assault Rifle Grenade Launcher Datajack Mining Laser Peak State ------------ > --- POWER ------------ Light Ion Engine > --- PROPULSION ------- Light Treads Light Treads > --- UTILITY ---------- Huge Storage Unit Seismic Detector > --- WEAPON ----------- Medium Laser Light Assault Rifle > --- INVENTORY -------- Light Ion Engine Aluminum Leg Seismic Detector Light Armor Plating Light Armor Plating Hacking Suite EM Pulse Gun Grenade Launcher Datajack [Rating: 8] Favorites ----------- Power Light Ion Engine Engine Light Ion Engine Propulsion Light Treads Treads Light Treads Leg Aluminum Leg Utility Small Storage Unit Device Seismic Detector Storage Small Storage Unit Protection Light Armor Plating Weapon Light Assault Rifle Energy Gun Medium Laser Ballistic Gun Light Assault Rifle Build | -11 -10 -10 ------- Run | Yrd Mat Min Slots Evolved . | . . . Power . | . . . Propulsion . | . . . Utility . | . . . Weapon . | . . . Parts Attached 21 | 8 3 10 Power 3 | 1 . 2 Engine 3 | 1 . 2 Core . | . . . Reactor . | . . . Propulsion 5 | 2 . 3 Treads 3 | 2 . 1 Leg 2 | . . 2 Wheel . | . . . Hover . | . . . Flight . | . . . Utility 6 | 2 3 1 Device 1 | 1 . . Storage 3 | 1 2 . Processor . | . . . Hackware . | . . . Protection 2 | . 1 1 Artifact . | . . . Weapon 7 | 3 . 4 Energy Gun 2 | 2 . . Energy Cannon . | . . . Ballistic Gun 5 | 1 . 4 Ballistic Cannon . | . . . Launcher . | . . . Special Weapon . | . . . Impact Weapon . | . . . Slashing Weapon . | . . . Piercing Weapon . | . . . Special Melee Weapon . | . . . Unidentified Prototypes . | . . . Parts Lost 13 | . . 13 Power 3 | . . 3 Propulsion 4 | . . 4 Utility 3 | . . 3 Weapon 3 | . . 3 Highest Loss Streak 9 | . . 9 To Critical Strikes . | . . . Average Backups 9 | 5 8 15 Power . | . 1 . Propulsion 2 | 3 2 1 Utility 2 | . 2 4 Weapon 2 | . 2 7 Tool/Special . | . . . Unused Backups 9 | . 3 6 Power . | . . . Propulsion 4 | . 3 1 Utility 2 | . . 2 Weapon 2 | . . 2 Tool/Special 1 | . . 1 Average Slot Usage (%) 99 | . 99 97 Engine 13 | . 14 12 Treads 24 | . 27 10 Leg 2 | . . 15 Device 8 | . 8 3 Storage 14 | . 14 14 Protection 5 | . 4 10 Energy Gun 12 | . 14 4 Ballistic Gun 15 | . 14 23 Peak Build Rating 8 | 7 8 8 Average Rating 7 | 6 7 7 On Entrance 5 | . 7 8 Naked Turns . | . . . Heaviest Build 89 | 12 89 49 Greatest Support 40 | 40 40 40 Greatest Overweight (x) 4 | . 2 4 Average Overweight (x) . | . . 1 Largest Inventory Capacity 25 | 8 25 20 Average Capacity 13 | 7 13 20 Most Carried 16 | 7 16 16 Average Carried 9 | 5 8 15 Final Capacity 20 | 8 20 20 Final Carried 16 | 7 16 10 Class Distribution -------------------- 100% | Mutant Dominant Class ---------------- Mutant | -10/Materials Mutant | -10/Mines Resources | -11 -10 -10 ----------- Run | Yrd Mat Min Matter Collected 567 | 285 149 133 Remotely . | . . . Salvage Created 1265 | 188 841 236 Parts 91 | 16 59 16 Haulers Intercepted 2 | . 2 . Recyclers Shooed . | . . . Parts Field Recycled . | . . . Retrieved Matter . | . . . Parts Self-Destructed . | . . . Prevented . | . . . Kills | -11 -10 -10 ------- Run | Yrd Mat Min Combat Hostiles Destroyed 23 | . 18 5 Guns 23 | . 18 5 Classes Destroyed 7 | 2 5 . Tunneler 5 | 5 . . Hauler 2 | . 2 . Recycler 2 | 1 1 . Operator 2 | . 2 . Watcher 2 | . 2 . Swarmer 5 | . 5 . Grunt 18 | . 13 5 Best Kill Streak 4 | 2 4 4 Combat Bots Only 4 | . 4 4 Max Kills in Single Turn 1 | 1 1 1 Gunslinging . | . . . Exploded . | . . . Melee . | . . . Uniques/NPCs Destroyed . | . . . Combat | -11 -10 -10 -------- Run | Yrd Mat Min Hostile Shots Fired 135 | . 76 59 Missed 27 | . 20 7 Hits 108 | . 56 52 Melee 2 | . . 2 Projectile 106 | . 56 50 AOE 19 | . . 19 Critical Strikes 2 | . . 2 Damage Taken 1838 | . 619 1219 Core 250 | . 99 151 Absorbed by Shields . | . . . Regen/Repaired (Parts) 124 | . 124 . Core Remaining (%) 100 | 100 . . Volleys Fired 135 | 12 87 36 Largest 2 | 2 2 2 Hottest 70 | 70 70 70 Shots Fired 265 | 20 174 71 Gun 265 | 20 174 71 Cannon . | . . . Launcher . | . . . Special . | . . . Kinetic 153 | 8 87 58 Thermal 106 | 12 87 7 Explosive . | . . . Electromagnetic 6 | . . 6 Robot Hit Streak 16 | 7 16 7 Robot Miss Streak 4 | 1 4 3 Penetration Max . | . . . Secondary Targets 6 | . 4 2 Max Gunslinging Chain 1 | . 1 1 Shots Hit Robots 179 | 16 115 48 Core Hits 77 | 8 50 19 Critical Kills 1 | . 1 . Critical Parts Destroyed . | . . . Critical Strikes 10 | 1 8 1 Burn 9 | 1 7 1 Destroy 1 | . 1 . Melee Attacks . | . . . Impact . | . . . Slashing . | . . . Piercing . | . . . Sneak Attacks . | . . . Combat Hostiles . | . . . Follow-up Attacks . | . . . Damage Inflicted 2003 | 179 1258 566 Guns 1945 | 171 1235 539 Cannons . | . . . Explosions . | . . . Melee . | . . . Ramming 58 | 8 23 27 Kinetic 911 | 36 455 420 Thermal 979 | 135 780 64 Explosive . | . . . Electromagnetic 55 | . . 55 Impact . | . . . Slashing . | . . . Piercing . | . . . Highest Corruption . | . . . Average Corruption . | . . . Corruption Purged . | . . . Corruption Blocked . | . . . Overload Shots . | . . . Overflow Damage . | . . . Projectiles . | . . . Explosions . | . . . Melee . | . . . Knockbacks 1 | . . 1 Impact 1 | . . 1 Kinetic . | . . . Secondary . | . . . Self-Inflicted Damage . | . . . Shots . | . . . Rammed 9 | 2 5 2 Targets Rammed 13 | 2 5 6 Kicked 4 | . . 4 Crushed . | . . . Highest Temperature 293 | 100 240 293 Average Temperature 87 | 38 79 129 Received Heat Transfer 573 | . 288 285 Siege Activations . | . . . Martial Activations . | . . . Shielding Activations . | . . . Robots Disrupted . | . . . Combat Hostiles . | . . . Robots Corrupted . | . . . Combat Hostiles . | . . . Parts Fried . | . . . Impact Corruptions . | . . . Robots Melted . | . . . Combat Hostiles . | . . . Parts Melted 1 | . 1 . Heat Transferred 3478 | 481 2738 259 Parts Sabotaged . | . . . Parts Stolen . | . . . Parts Stripped . | . . . Power Chain Reactions . | . . . Alert | -11 -10 -10 ------- Run | Yrd Mat Min Maximum Alert Level . | . . . Low Security (%) 100 | 100 100 100 Level 1 . | . . . Level 2 . | . . . Level 3 . | . . . Level 4 . | . . . Level 5 . | . . . High Security . | . . . Max Security . | . . . Peak Influence 169 | 10 169 95 Initial 40 | . . 40 Average 65 | 1 80 29 Influence Increases 728 | 30 563 135 Destroy 0b10 Robot/C 460 | . 360 100 Destroy 0b10 Robot/NC 65 | 30 35 . Destroy Leader 108 | . 88 20 Successful Hack 20 | . 20 . Partial Spotted 15 | . 15 . Lose Combat Pursuer 60 | . 45 15 Influence Decreases 728 | 30 457 241 Entered New Map 66 | . . 66 Time Decay 652 | 30 457 165 Lost Part 10 | . . 10 Squads Dispatched 4 | . 4 . Investigation 2 | . 2 . Extermination . | . . . Reinforcement 2 | . 2 . Assault . | . . . Garrison . | . . . Intercept . | . . . Searches Triggered . | . . . Construction Impeded . | . . . Haulers Reinforced . | . . . Active Scanning Responses . | . . . Cargo Convoy Interrupts . | . . . Stealth | -11 -10 -10 --------- Run | Yrd Mat Min Distress Signals 3 | . 3 . Communications Jammed . | . . . Distress Signals . | . . . Times Spotted 44 | . 35 9 Peak Tracking Total 6 | . 4 6 Tactical Retreats 3 | . 2 1 Traps | -11 -10 -10 ------- Run | Yrd Mat Min Traps Triggered 4 | . 4 . Indirectly . | . . . Trap Hack Attempts . | . . . Triggered . | . . . Disarmed . | . . . Reprogrammed . | . . . Reused . | . . . Traps Extracted . | . . . Installed . | . . . Triggered . | . . . Machines | -11 -10 -10 ---------- Run | Yrd Mat Min Machines Disabled . | . . . Max in Single Turn . | . . . Machines Repaired . | . . . Machines Dismantled . | . . . Machines Sabotaged . | . . . Overloaded Fab Kills . | . . . Hacking | -11 -10 -10 --------- Run | Yrd Mat Min Machines Accessed 5 | . 5 . Terminals 4 | . 4 . Fabricators . | . . . Repair Stations 1 | . 1 . Recycling Units . | . . . Scanalyzers . | . . . Garrison Access . | . . . Total Hacks 14 | . 14 . Successful 9 | . 9 . Failed 5 | . 5 . Catastrophic . | . . . Database Lockouts . | . . . Manual 12 | . 12 . Terminals 11 | . 11 . Fabricators . | . . . Repair Stations 3 | . 3 . Recycling Units . | . . . Scanalyzers . | . . . Garrison Access . | . . . Terminal Hacks 2 | . 2 . Robot Analysis 2 | . 2 . Fabricator Hacks . | . . . Repair Station Hacks 2 | . 2 . Scan Component 1 | . 1 . Repair 1 | . 1 . Recycling Unit Hacks . | . . . Scanalyzer . | . . . Garrison Access Hacks . | . . . Unauthorized Hacks 5 | . 5 . Terminals 5 | . 5 . Botnet 2 | . 2 . Skim 3 | . 3 . Fabricators . | . . . Repair Stations . | . . . Recycling Units . | . . . Scanalyzers . | . . . Garrison Access . | . . . Data Cores Recovered . | . . . Used . | . . . Hacking Detections 5 | . 5 . Full Trace Events . | . . . Feedback Events . | . . . Feedback Blocked . | . . . Robot Schematics Acquired . | . . . Robots Built . | . . . Authchips . | . . . Time . | . . . Total Robot Build Rating . | . . . Part Schematics Acquired . | . . . Parts Built . | . . . Authchips . | . . . Time . | . . . Total Part Build Rating . | . . . Parts Repaired 1 | . 1 . Time 26 | . 26 . Parts Recycled . | . . . Recycled Matter . | . . . Retrieved Matter . | . . . Retrieved Components . | . . . Parts Scanalyzed . | . . . Part Schematics Acquired . | . . . Parts Damaged . | . . . Bothacking | -11 -10 -10 ------------ Run | Yrd Mat Min Used RIF Installer . | . . . Robots Hacked . | . . . Non-combat . | . . . Combat . | . . . Robot Hacks Applied . | . . . Relay Couplers Released . | . . . Fabnet Peak Effective % . | . . . Robots Rewired . | . . . Allies Hacked . | . . . Hacks Repelled . | . . . Allies | -11 -10 -10 -------- Run | Yrd Mat Min Total Allies . | . . . Largest Group . | . . . Highest-Rated Group . | . . . Highest-Rated Ally . | . . . Total Orders . | . . . Ally Attacks . | . . . Total Damage . | . . . Kills . | . . . Allies Corrupted . | . . . Allies Melted . | . . . Intel | -11 -10 -10 ------- Run | Yrd Mat Min Active Infowar (turns) 1847 | 158 1568 121 Seismic 1847 | 158 1568 121 Robot Analysis Total 2 | . 2 . Derelict Logs Recovered 1 | . . 1 Drone Launches . | . . . Drone Recoveries . | . . . Exploration | -11 -10 -10 ------------- Run | Yrd Mat Min Turns Passed 3224 | 259 2472 493 Spaces Moved 1191 | 111 942 138 Core 4 | 4 . . Treads 1092 | 107 942 43 Legs 95 | . . 95 Wheels . | . . . Hover . | . . . Flight . | . . . Fastest Speed 50 | 50 160 240 Average Speed 199 | 156 196 254 Slowest Speed 400 | 160 320 400 Overloaded Moves . | . . . Propulsion Burnouts . | . . . Robots Hopped . | . . . Potential Cave-ins . | . . . Cave-ins Triggered . | . . . Exploration Rate (%) 48 | 7 97 40 Regions Visited 2 Branch Regions 1 Pre-discovered Areas 1 | . . 1 Known Exits Taken . | . . . Unknown Exits Taken 2 | 1 1 . Scrap Searched 2 | . . 2 Spaces Dug . | . . . Terrain Destroyed . | . . . Melee . | . . . Projectile . | . . . AOE . | . . . Terrain Rammed . | . . . Walls Destroyed . | . . . Machines Disabled . | . . . Actions | -11 -10 -10 --------- Run | Yrd Mat Min Total 1784 | 174 1406 204 Wait 390 | 34 350 6 Move 1189 | 110 941 138 Hop . | . . . Pick Up 24 | 8 12 4 Fast Attach 9 | 6 3 . Attach 11 | 1 . 10 Detach . | . . . Swap 9 | 1 4 4 Drop 4 | . 4 . Fire 135 | 12 87 36 Melee . | . . . Ram . | . . . Kick 4 | . . 4 Crush 9 | 2 5 2 Escape Stasis . | . . . Rewire . | . . . Trap . | . . . Miscellaneous . | . . . Route ------- -11/Scrapyard -10/Materials (discovered 4 exits: [*Mat x3] / [*Min]) -10/Mines (discovered 1 exit: [*Mat]) History --------- Turn | Location | Event 25 | -11/Scrapyard | Discovered new exit (range 16) 260 | -11/Scrapyard | Entered Materials 318 | -10/Materials | Build established: Mutant 798 | -10/Materials | Discovered new exit (range 15) 1007 | -10/Materials | Discovered new exit (range 13) 1078 | -10/Materials | Discovered new exit (range 12) 1181 | -10/Materials | Repaired Lgt. Treads 1619 | -10/Materials | Discovered new exit (range 16) 2732 | -10/Materials | Entered Mines 2744 | -10/Mines | Learned location of Zion (-7) 2875 | -10/Mines | Core integrity fell below 50% 2899 | -10/Mines | Lost 3 parts (1p1n1u) 3086 | -10/Mines | Discovered new exit (range 8) 3176 | -10/Mines | Assembled infested the area 3222 | -10/Mines | Core integrity fell below 20% 3225 | -10/Mines | Destroyed by D-53 Grenadier with Mini Grenade Launcher Last Messages --------------- dispatching Demolisher response squad. 03201_ C-30 ARC bursts open, deploying its payload. 03201_ D-53 Grenadier unfolds itself. 03201_ as-60579 destroyed. 03205_ Lgt. Ion Engine destroyed. 03207_ Aluminum Leg destroyed. 03207_ Lgt. Armor Plating destroyed. 03207_ Assault Rifle destroyed. 03207_ Lgt. Assault Rifle destroyed. 03213_ The unstable cave ceiling collapses. 03213_ Ion Engine destroyed. 03214_ The unstable cave ceiling collapses. 03215_ D-53 Grenadier destroyed. 03217_ The unstable cave ceiling collapses. 03219_ Assault Rifle destroyed. 03219_ Lgt. Treads destroyed. 03220_ The unstable cave ceiling collapses. 03221_ Seismic Detector destroyed. 03222_ The unstable cave ceiling collapses. Map ----- +----------------------------------------------------+ | ########### #??????? | | * ##?????? | | ?# !%! #?????? | | ?# ########### #?????? | | ?## #?????????# #?????? | | ??# ##?????????## ##?????? | | ?## #???????????## #??????? | | ?# #????????????# ##??????? | | ?# ##?????######?# < ###???????? | | ?# ##??????# ### ##?????????? | | ?# ##???????# ## #??????????? | | ?## #????????# # #??????????? | | ??## #?????????# #??????????? | | ???# #?????????# #??????????? | | ???## ##????###### #??????????? | | ????## #?????# ##??????????? | | ?????#%#?????# ##### ##???????????? | | ?????# #?????# #???#######????????????? | | ?????# ####### #??????????????????????? | | ?????# ## #??????????????????????? | | ?????# ## ## ##??????#######?????????? | | ###### ## ## ######?## # ##????????? | | %% ## ### ##???????? | | ######### ####### ## # #???????? | | ?????????? #?????# ## #???????? | | ???????????#?????# ## @ #???????? | | ?????????????????# % d #??????? | | ?????????????????#### #??????? | | ????????????????????## #??????? | | ?????????????????????## #?????? | | ??????????????????????## #???? | | ???????????????????????## #??? | | ????????????????????????## #?? | | ?????????????????????????? ## ##?? | | ?????????????????????????? #?####??? | | ?????????????????????????? %$#???????? | | ?????????????????????????? ???????? | | ??????????????????????????## ??????? | | ????????????????????????????# ??????? | | ?????????????????????????????#????????? | | ??????????????????????????????????????? | | ??????????????????????????????????????? | | ??????????????????????????????????????? | | ??????????????????????????????????????? | | ??????????????????????????????????????? | | ??????????????????????????????????????? | | ??????????????????????????????????????? | | ??????????????????????????????????????? | | ??????????????????????????????????????? | | ??????????????????????????????????????? | +----------------------------------------------------+ Best States ------------- Heat Dissipation 25 Energy Generation 10 Energy Capacity 250 Matter Stores 300 Matter Capacity 300 Sight Range 16 Terrain Scan Density 10 Armor Coverage 150 Evasion (%) 40 Recoil Reduction 2 Item Schematics ----------------- None Robot Schematics ------------------ None Fabricated ------------ Nothing Repaired ---------- Lgt. Treads | 11% | -10/Materials Alien Tech Used ----------------- None Achievements -------------- None Challenges ------------ None Game ------ Seed SmallBoreAutobeam Manual? 0 Play Time 00:13:58 Cumulative 129.2 hours Start 2025.09.10 @ 16:23:39 End 2025.09.10 @ 16:36:10 Sessions 1 Manual Loads 0 Difficulty Rogue Special Mode None Game No. 115 Rogue 115 Adventurer 0 Explorer 0 Win Type - Total 4 Types 3/0/1/0/0/0/0/0/0/0 Lore% 67 Gallery% 59 Achievement% 56 Wizard Run 0 Options --------- Layout 1 ASCII 0 Keyboard 1 Movement Arrows Keybinds 0 Fullscreen 1 Font 24/Smallcaps Map View 50x40 Zoom Use 0% Tactical HUD 1 Map Filters NONE Filters NONE Steam 1 RUN: 454b0812-cb08-4a7e-98b4-7d228130989d